bitfinex-derivatives/quotes_ETHF0:USTF0_20240829
["timestamp","ask_amount","ask_price","bid_price","bid_amount"]
[1724950334921,4.13254907,2564.6,2564.3,0.38983]
[1724950335121,4.13254907,2564.6,2564.2,0.38983]
[1724950335528,4.13254907,2564.6,2564.1,1.37614294]
[1724950335829,4.13254907,2564.6,2564.4,0.38981]
[1724950336028,4.13254907,2564.6,2564.5,0.3898]
[1724950336230,4.13254907,2564.6,2564.4,0.3898]
[1724950336628,4.13254907,2564.6,2564.5,0.3898]
[1724950337127,4.13254907,2564.6,2564.4,0.38981]
[1724950337438,4.13254907,2564.6,2564.3,0.38982]
[1724950337630,0.38978,2564.6,2564.3,0.38982]
[1724950337932,4.44195187,2564.5,2564.2,0.38984]
[1724950338327,4.83175187,2564.6,2564.2,0.38984]
[1724950338530,0.3898,2564.6,2564.2,0.38984]
[1724950339027,0.38984,2564.2,2564.1,0.00584294]
[1724950339433,0.38984,2564.2,2563.3,7.3148]
[1724950339434,15.09086526,2564.2,2563.3,4.107]
[1724950339634,0.38999,2563.3,2562.9,0.39004]
[1724950339834,0.97492,2563.4,2562.8,4.107]
[1724950340044,0.39005,2562.9,2562.7,4.6912]
[1724950340233,0.97503,2563.1,2562.6,40.8]
[1724950340540,3.59787,2562.7,2562.6,0.00584294]
[1724950341037,3.59787,2562.7,2562.6,0.39593294]
[1724950341038,7.30994937,2562.7,2562.6,0.39593294]
[1724950341339,3.2078,2562.7,2562.6,5.27356294]
[1724950341540,3.2078,2563.0,2562.6,3.90824294]
[1724950341740,4.10214937,2562.7,2562.6,0.39593294]
[1724950342137,7.55555462,2563.0,2562.6,0.39593294]
[1724950342138,3.2078,2563.0,2562.9,0.39004]
[1724950342437,7.55555462,2563.0,2562.9,0.39004]
[1724950343030,0.00584294,2563.1,2563.0,0.39003]
[1724950343631,4.26855831,2563.1,2562.7,1.5294]
[1724950343831,4.26855831,2563.1,2563.0,0.39003]
[1724950344340,0.00584294,2563.1,2563.0,0.39003]
[1724950344828,0.00584294,2563.1,2562.7,0.7486]
[1724950344829,4.14126056,2563.1,2562.7,0.7486]
[1724950345039,4.14126056,2563.1,2562.7,1.13867]
[1724950345345,10.35241056,2563.1,2562.6,4.11284294]
[1724950345541,0.39005,2562.9,2562.7,0.39007]
[1724950345732,4.88736056,2563.1,2562.6,4.11284294]
[1724950345937,4.5120374,2562.8,2562.7,0.39007]
[1724950346140,4.9020774,2563.0,2562.8,0.39006]
[1724950346337,0.39006,2562.8,2562.6,4.50292294]
[1724950346547,3.2078,2562.9,2562.6,4.11284294]
[1724950346548,0.39007,2562.7,2562.6,4.11284294]
[1724950346741,4.9021074,2562.7,2562.6,4.11284294]
[1724950346942,3.9024,2562.7,2562.6,4.11284294]
[1724950347141,0.00584294,2563.1,2562.6,8.01524294]
[1724950347335,0.00584294,2563.1,2562.7,0.7667]
[1724950347529,4.47163989,2562.9,2562.8,0.39005]
[1724950347735,3.71001097,2563.0,2562.9,0.39004]
[1724950347932,0.74144294,2563.1,2563.0,0.39003]
[1724950348229,4.09334477,2563.0,2562.9,0.39004]
[1724950348428,0.00584294,2563.1,2563.0,0.39003]
[1724950349438,4.72761196,2563.1,2562.7,1.5175]
[1724950349638,4.33759196,2563.1,2562.7,1.5175]
[1724950349845,4.33759196,2563.1,2562.9,0.39003]
[1724950350233,4.72761196,2563.1,2562.7,1.5175]
[1724950350435,4.33759196,2563.1,2562.9,0.39003]
[1724950351144,4.33759196,2563.1,2562.7,1.5175]
[1724950351145,4.72761196,2563.1,2562.7,0.7667]
[1724950351341,4.72760196,2563.1,2562.9,0.39004]
[1724950351547,4.33759196,2563.1,2562.9,0.39004]
[1724950351838,4.72760196,2563.1,2562.9,0.39004]
[1724950352045,4.33759196,2563.1,2562.9,0.39004]
[1724950352648,0.39004,2563.0,2562.7,1.15676]
[1724950352946,0.39007,2562.7,2562.6,7.32064294]
[1724950353149,0.39007,2562.7,2562.6,4.11284294]
[1724950353444,8.36948728,2562.7,2562.6,4.11284294]
[1724950353641,7.97941728,2562.7,2562.6,4.11284294]
[1724950354032,8.36948728,2562.7,2562.6,4.11284294]
[1724950354233,7.97941728,2562.7,2562.6,4.11284294]
[1724950354436,8.36948728,2562.7,2562.6,4.11284294]
[1724950354841,8.36948728,2562.7,2562.6,0.00584294]
[1724950355237,4.07701728,2562.7,2562.6,0.39593294]
[1724950355643,4.07701728,2562.7,2562.6,0.00584294]
[1724950355839,4.07701728,2562.7,2562.6,0.39593294]
[1724950356344,1.86333,2563.0,2562.6,0.00584294]
[1724950356345,4.82632768,2562.8,2562.6,0.00584294]
[1724950356649,0.39006,2562.8,2562.6,0.00584294]
[1724950356842,4.82633768,2562.7,2562.6,0.00584294]
[1724950357242,8.72873768,2562.7,2562.6,0.00584294]
[1724950358043,8.33866768,2562.7,2562.6,0.00584294]
[1724950358245,4.43626768,2562.7,2562.6,0.00584294]
[1724950358945,8.72873768,2562.7,2562.6,0.00584294]
[1724950360548,8.33866768,2562.7,2562.6,0.00584294]
[1724950360749,8.33866768,2562.7,2562.6,0.39593294]
[1724950361353,8.72873768,2562.7,2562.6,0.00584294]
[1724950363357,8.33866768,2562.7,2562.6,0.39593294]
[1724950363651,4.43626768,2562.7,2562.6,0.39593294]
[1724950363953,4.0983103,2562.9,2562.8,0.39004]
[1724950364352,3.9016,2562.9,2562.8,0.39006]
[1724950364556,0.00584294,2563.1,2563.0,1.3651]
[1724950364750,0.00584294,2563.1,2563.0,0.39003]
[1724950364947,4.10415324,2563.1,2563.0,3.2078]
[1724950365262,8.39576324,2563.1,2563.0,3.2078]
[1724950365456,4.10415324,2563.1,2563.0,3.59783]
[1724950365757,4.10415324,2563.1,2563.0,8.4745]
[1724950365966,0.00584294,2563.1,2563.0,15.44957]
[1724950366651,0.38993,2563.7,2563.6,0.38993]
[1724950367058,25.0,3344.0,2563.6,4.18264]
[1724950367059,3.2078,2564.1,2563.6,4.18264]
[1724950367360,3.59767,2564.1,2564.0,0.38987]
[1724950367763,8.04830442,2564.1,2563.7,0.8013]
[1724950368161,7.65843442,2564.1,2564.0,0.38987]
[1724950368350,7.65843442,2564.1,2564.0,3.59767]
[1724950368351,4.45063442,2564.1,2564.0,3.59767]
[1724950368552,0.00584294,2564.3,2564.2,0.38984]
[1724950368960,4.25442254,2564.2,2564.0,3.21364294]
[1724950369155,0.38984,2564.2,2564.1,0.38986]
[1724950369367,0.39568294,2564.3,2564.1,0.38986]
[1724950369567,0.38981,2564.4,2564.2,0.38984]
[1724950369765,0.38981,2564.4,2564.3,3.2078]
[1724950370068,4.57407003,2564.4,2564.3,3.2078]
[1724950370263,4.18426003,2564.4,2564.3,3.2078]
[1724950370464,8.47407003,2564.4,2564.3,3.2078]
[1724950370672,0.38986,2564.1,2564.0,0.00584294]
[1724950370864,5.85451,2564.1,2564.0,0.00584294]
[1724950371159,12.95620491,2564.1,2564.0,0.00584294]
[1724950371561,4.56620491,2564.1,2564.0,0.00584294]
[1724950371961,4.17634491,2564.1,2564.0,0.39571294]
[1724950372463,4.17634491,2564.1,2564.0,4.29571294]
[1724950373170,4.17634491,2564.1,2564.0,0.39571294]
[1724950374066,0.38986,2564.1,2564.0,0.00584294]
[1724950374257,0.38986,2564.1,2564.0,3.21364294]
[1724950374567,4.40550857,2564.1,2564.0,3.21364294]
[1724950374769,4.01564857,2564.1,2564.0,3.60351294]
[1724950375566,4.01564857,2564.1,2564.0,7.50351294]
[1724950375867,1.14453294,2564.6,2564.4,0.3898]
[1724950376063,0.75474294,2564.6,2564.3,3.2078]
[1724950376378,0.38981,2564.4,2564.3,3.59762]
[1724950376660,0.38981,2564.4,2564.3,3.2078]
[1724950376868,0.38983,2564.3,2564.1,1.15755]
[1724950377069,4.45303043,2564.4,2564.2,3.59764]
[1724950377258,0.38981,2564.4,2564.2,3.59764]
[1724950377463,4.19292614,2564.4,2564.3,0.38982]
[1724950377963,4.19292614,2564.4,2564.3,4.28982]
[1724950378163,0.00584294,2564.6,2564.5,0.3898]
[1724950378863,0.38981,2564.4,2564.3,0.7689]
[1724950379258,4.61991706,2564.4,2564.3,0.7689]
[1724950379662,4.23010706,2564.4,2564.3,1.15873]
[1724950380162,0.39563294,2564.6,2564.3,5.05873]
[1724950380163,0.3898,2564.5,2564.3,5.05873]
[1724950380368,0.3898,2564.5,2564.3,1.15873]
[1724950380565,4.67422195,2564.5,2564.3,1.15873]
[1724950380769,4.67422195,2564.5,2564.3,1.15872]
[1724950381270,4.28442195,2564.5,2564.2,3.2078]
[1724950381577,0.38982,2564.4,2564.2,3.59764]
[1724950381767,5.05872195,2564.5,2564.4,0.38981]
[1724950381972,0.39563294,2564.6,2564.4,0.38981]
[1724950382376,4.19439376,2564.5,2564.4,0.38981]
[1724950382969,0.00584294,2564.6,2564.5,0.3898]
[1724950383163,0.00584294,2564.6,2564.5,8.4713]
[1724950383379,0.00584294,2564.6,2564.5,9.2582]
[1724950383763,1.5095,2565.2,2565.1,0.38971]
[1724950383969,0.38964,2565.6,2565.4,0.38965]
[1724950384269,0.38964,2565.6,2565.5,0.38965]
[1724950384468,0.38964,2565.6,2565.4,0.38966]
[1724950384667,4.28273686,2565.5,2565.1,1.5728]
[1724950384971,0.38969,2565.3,2565.1,1.9625]
[1724950385270,5.46994294,2565.6,2565.1,1.9625]
[1724950385271,4.40908743,2565.4,2565.1,1.5728]
[1724950385665,0.38967,2565.4,2565.2,0.38969]
[1724950385879,4.79876743,2565.3,2565.1,1.9625]
[1724950386177,4.40908743,2565.3,2565.1,1.5728]
[1724950386372,0.38968,2565.3,2565.1,3.2078]
[1724950386569,4.37921642,2565.2,2565.1,3.5975]
[1724950387072,4.37921642,2565.4,2565.3,0.38968]
[1724950387376,0.38965,2565.5,2565.3,0.38967]
[1724950387568,4.32892433,2565.4,2565.3,0.38967]
[1724950388471,0.00584294,2565.6,2565.5,0.38965]
[1724950388872,4.06754354,2565.6,2565.5,0.38965]
[1724950390272,4.06754354,2565.6,2565.2,1.5311]
[1724950390477,4.45718354,2565.6,2565.5,3.2078]
[1724950390874,4.45718354,2565.6,2565.2,1.5311]
[1724950390875,8.93924354,2565.6,2565.2,1.5311]
[1724950391176,0.38971,2565.1,2565.0,0.00584294]
[1724950391384,9.75238,2565.1,2565.0,0.00584294]
[1724950391572,20.26323431,2565.1,2565.0,0.00584294]
[1724950392077,0.38979,2564.6,2564.3,4.7267]
[1724950392272,0.38979,2564.6,2564.3,3.2078]
[1724950392468,5.23009842,2564.5,2564.3,3.2078]
[1724950392880,4.45319842,2564.7,2564.3,3.2078]
[1724950393080,4.45319842,2564.7,2564.5,0.38979]
[1724950393269,4.46138417,2564.4,2564.3,3.59763]
[1724950393573,4.14137975,2565.0,2564.8,0.38974]
[1724950393783,4.53109975,2565.0,2564.8,0.38974]
[1724950393970,4.53109975,2565.0,2564.6,3.2078]
[1724950393971,0.38974,2564.9,2564.7,0.38976]
[1724950394175,4.24939533,2564.9,2564.8,0.38975]
[1724950394576,7.70364294,2565.6,2564.8,3.8992]
[1724950394773,7.70364294,2565.6,2564.7,0.7526]
[1724950394774,1.90477,2565.4,2565.2,0.38969]
[1724950394975,0.00584294,2565.6,2565.3,5.39680467]
[1724950395171,4.12,2565.7,2565.6,2.33779]
[1724950395479,4.12,2565.7,2565.6,8.08743]
[1724950395675,4.12,2565.7,2565.6,11.98503]
[1724950395869,4.12,2565.7,2565.6,52.78503]
[1724950396770,4.12,2565.7,2565.6,11.98503]
[1724950397275,4.12,2565.7,2565.6,12.95911]
[1724950398378,2.94e-06,2565.9,2565.8,3.31163]
[1724950398579,2.94e-06,2565.9,2565.8,11.69909552]
[1724950398776,2.94e-06,2565.9,2565.8,19.64711552]
[1724950398980,3.04191,2566.3,2566.2,1.3634]
[1724950399284,2.1222,2566.3,2566.2,16.03506]
[1724950399475,2.1222,2566.3,2566.2,18.958]
[1724950399777,2.1222,2566.3,2566.2,44.39734]
[1724950399977,2.1222,2566.3,2566.2,7.49414]
[1724950400182,2.1222,2566.3,2566.2,3.59734]
[1724950400694,6.21064377,2566.3,2566.2,0.38954]
[1724950400879,6.21064377,2566.3,2566.0,0.00584294]
[1724950400880,0.38956,2566.1,2566.0,0.00584294]
[1724950401185,0.7673,2566.2,2566.1,0.38956]
[1724950401681,3.2078,2567.2,2566.2,1.7538]
[1724950401882,0.38937,2567.4,2567.1,0.3894]
[1724950402085,0.38938,2567.3,2567.0,3.59721]
[1724950402385,1.20791,2567.1,2567.0,3.59722]
[1724950402782,1.4112339,2567.1,2567.0,3.59722]
[1724950403572,1.20791,2567.1,2567.0,3.59722]
[1724950404185,1.20791,2567.1,2567.0,0.38942]
[1724950404371,1.20791,2567.1,2566.8,0.00584294]
[1724950404372,0.38943,2566.9,2566.8,0.00584294]
[1724950404577,0.3895,2566.5,2566.2,3.59733]
[1724950404778,1.20791,2566.3,2565.9,3.2078]
[1724950404981,6.25573,2566.8,2565.9,3.2078]
[1724950404982,4.05165214,2566.4,2565.9,3.2078]
[1724950405277,1.20791,2566.0,2565.9,3.59739]
[1724950405679,0.00584294,2566.2,2566.1,0.38956]
[1724950406175,1.21375294,2566.2,2566.1,0.38956]
[1724950407980,0.00584294,2566.2,2566.1,5.26026]
[1724950408194,0.00584294,2566.2,2566.1,4.28636]
[1724950408982,0.00584294,2566.2,2566.1,10.28636]
[1724950409180,0.00584294,2566.2,2566.1,16.72416]
[1724950409588,2.84e-06,2566.2,2566.1,16.72416]
[1724950410891,3.2078,2567.7,2567.2,0.38938]
[1724950411083,1.17437,2567.4,2567.1,0.3894]
[1724950411283,1.20791,2567.2,2567.1,0.3894]
[1724950412086,1.20791,2567.2,2566.9,3.60307294]
[1724950412087,5.62409274,2567.2,2566.9,3.60307294]
[1724950412292,1.20791,2567.0,2566.9,3.21364294]
[1724950412694,6.05577003,2567.0,2566.9,3.21364294]
[1724950412884,5.66635003,2567.0,2566.9,3.60307294]
[1724950413087,1.20791,2567.0,2566.9,3.60307294]
[1724950413282,0.785,2567.4,2566.9,8.09307294]
[1724950413488,1.20791,2567.2,2567.1,0.3894]
[1724950413987,1.5973,2567.2,2567.0,0.38941]
[1724950414189,1.20791,2567.1,2567.0,0.38941]
[1724950414396,1.20791,2567.1,2566.9,3.21364294]
[1724950414590,1.20791,2567.0,2566.9,3.60307294]
[1724950414991,2.00221,2567.0,2566.9,3.60307294]
[1724950415497,6.5965926,2567.0,2566.9,3.21364294]
[1724950415989,6.2071726,2567.0,2566.9,3.60307294]
[1724950416197,6.2071726,2567.0,2566.9,3.21364294]
[1724950416395,6.2071726,2567.0,2566.9,3.60307294]
[1724950416995,2.00221,2567.0,2566.9,3.21364294]
[1724950417688,2.00221,2567.0,2566.9,3.60307294]
[1724950418692,0.7943,2567.0,2566.9,8.47266294]
[1724950418890,0.785,2567.4,2567.3,0.38937]
[1724950418891,1.5359,2567.4,2567.3,0.38937]
[1724950419296,2.74381,2567.4,2567.3,0.38937]
[1724950420497,1.99291,2567.4,2567.3,1.36281]
[1724950422197,0.7509,2567.8,2567.7,0.38931]
[1724950422509,0.7509,2567.8,2567.7,3.59711]
[1724950422693,6.44410754,2567.8,2567.7,3.59711]
[1724950422895,6.83340754,2567.8,2567.7,3.59711]
[1724950423098,6.83340754,2567.8,2567.7,3.2078]
[1724950424100,6.44410754,2567.8,2567.7,3.59711]
[1724950424308,1.95881,2567.8,2567.7,3.59711]
[1724950425201,2.34811,2567.8,2567.7,3.59711]
[1724950425508,7.83500224,2567.8,2567.7,3.2078]
[1724950425797,6.86175224,2567.8,2567.7,3.2078]
[1724950426106,16.06955224,2567.8,2567.4,0.38935]
[1724950426301,1.20791,2567.5,2567.4,0.38936]
[1724950426493,1.20791,2567.5,2567.4,1.36276]
[1724950426897,1.20791,2567.5,2567.4,0.38936]
[1724950427507,3.9587,2567.8,2567.4,4.86859]
[1724950427700,4.34801,2567.8,2567.7,0.38931]
[1724950428011,4.60366229,2567.7,2567.6,0.38932]
[1724950428199,0.38932,2567.7,2567.6,0.38932]
[1724950428404,1.59723,2567.7,2567.6,0.38932]
[1724950428606,5.90823854,2567.7,2567.6,0.38932]
[1724950429001,11.51891854,2567.7,2567.0,0.97355]
[1724950429201,0.38936,2567.5,2567.3,0.38936]
[1724950429412,1.20791,2567.1,2567.0,1.36297]
[1724950429707,5.6519464,2567.4,2567.3,0.38937]
[1724950429907,1.20791,2567.4,2567.3,0.38937]
[1724950430506,4.93196,2567.8,2567.5,0.38934]
[1724950430507,0.38934,2567.6,2567.5,0.38934]
[1724950430712,1.20791,2567.4,2567.3,0.38937]
[1724950430896,0.38938,2567.3,2566.9,0.97941294]
[1724950431105,1.59733,2567.0,2566.9,0.39527294]
[1724950431309,1.59733,2567.0,2566.9,0.00584294]
[1724950431502,6.77422614,2567.0,2566.9,0.00584294]
[1724950431699,5.80067614,2567.0,2566.9,0.39527294]
[1724950431899,1.20791,2567.0,2566.9,0.39527294]
[1724950432300,1.59733,2567.0,2566.9,0.39527294]
[1724950432508,1.20791,2567.0,2566.9,0.39527294]
[1724950433105,0.7258,2567.3,2567.2,0.38939]
[1724950433309,1.11517,2567.3,2567.2,0.38939]
[1724950433505,2.32308,2567.3,2567.2,0.38939]
[1724950433704,1.93371,2567.3,2567.2,0.38939]
[1724950433910,1.20791,2567.3,2567.2,0.38939]
[1724950434607,0.62377185,2567.3,2567.2,5.85287]
[1724950434814,1.5349,2567.7,2567.6,0.38933]
[1724950435214,2.54798185,2567.7,2567.6,0.38933]
[1724950435416,2.15867185,2567.7,2567.6,0.38933]
[1724950435911,2.54798185,2567.7,2567.6,0.38933]
[1724950436112,6.29608179,2567.7,2567.2,4.107]
[1724950436311,1.01314185,2567.3,2567.2,4.49639]
[1724950436502,3.83157185,2567.3,2567.2,4.49639]
[1724950437210,3.9376,2567.7,2567.6,0.38933]
[1724950437406,4.32691,2567.7,2567.6,0.38933]
[1724950437601,8.61974345,2567.7,2567.6,0.38933]
[1724950438012,9.00907345,2567.7,2567.5,0.38933]
[1724950438217,0.38933,2567.6,2567.5,0.38933]
[1724950438413,1.01310185,2567.6,2567.5,0.38933]
[1724950438910,0.62377185,2567.6,2567.2,4.107]
[1724950439119,0.62377185,2567.4,2567.3,0.38937]
[1724950440109,4.91739366,2567.4,2567.3,0.38937]
[1724950440417,4.91739366,2567.4,2567.2,4.49638]
[1724950440620,4.91739366,2567.4,2567.2,4.107]
[1724950440621,1.01314185,2567.3,2567.2,4.107]
[1724950440912,5.90508128,2567.3,2567.2,4.71551856]
[1724950441218,5.90508128,2567.3,2567.2,4.107]
[1724950441412,5.90508128,2567.3,2567.2,4.71551061]
[1724950441711,5.51571128,2567.3,2567.2,5.10489732]
[1724950441917,4.74931128,2567.3,2567.2,5.10489732]
[1724950442113,0.62377185,2567.3,2567.2,5.10489732]
[1724950442413,3.9376,2567.7,2567.2,5.68898732]
[1724950442621,0.62377185,2567.4,2567.3,0.99787732]
[1724950442918,3.59716,2567.4,2567.3,0.60850732]
[1724950443120,4.22093185,2567.4,2567.3,0.99787732]
[1724950443306,4.22093185,2567.4,2567.3,0.60850732]
[1724950443612,4.22093185,2567.4,2567.2,4.107]
[1724950443613,0.38937,2567.3,2567.2,4.107]
[1724950443808,1.73904185,2567.3,2567.2,4.71554016]
[1724950444008,1.73904185,2567.3,2567.2,0.99793016]
[1724950444009,6.05965175,2567.3,2567.2,0.99793016]
[1724950444516,6.05965175,2567.3,2567.2,0.99793131]
[1724950444712,6.05965175,2567.3,2567.2,0.60854131]
[1724950445911,6.05965175,2567.3,2567.2,0.99793131]
[1724950446109,6.05965175,2567.3,2567.2,0.60854131]
[1724950446311,0.3894,2567.1,2566.9,1.40692383]
[1724950446513,0.3894,2567.1,2567.0,0.60856043]
[1724950446917,0.3894,2567.1,2566.9,1.01749383]
[1724950446918,0.38942,2567.0,2566.9,0.00584294]
[1724950447209,1.01319185,2567.0,2566.9,0.61445364]
[1724950447422,5.3265621,2567.0,2566.9,1.62610453]
[1724950447806,5.3265621,2567.0,2566.9,0.61445364]
[1724950448121,5.3265621,2567.0,2566.9,1.00388364]
[1724950448417,5.3265621,2567.0,2566.9,0.61445364]
[1724950449013,5.3265621,2567.0,2566.9,1.00388364]
[1724950449321,5.3265621,2567.0,2566.9,2.01553453]
[1724950449625,4.9371421,2567.0,2566.9,2.89590725]
[1724950449918,5.3265621,2567.0,2566.9,2.89590725]
[1724950450120,5.3265621,2567.0,2566.9,4.84338098]
[1724950450307,5.3265621,2567.0,2566.9,2.89590725]
[1724950450505,5.3265621,2567.0,2566.9,1.00388364]
[1724950450712,5.3265621,2567.0,2566.9,1.62610453]
[1724950450908,5.3265621,2567.0,2566.9,2.01553453]
[1724950451311,5.3265621,2567.0,2566.9,2.89591017]
[1724950451518,5.3265621,2567.0,2566.9,3.35440968]
[1724950451716,5.3265621,2567.0,2566.9,2.89589003]
[1724950452216,5.3265621,2567.0,2566.9,2.50646003]
[1724950452415,5.3265621,2567.0,2566.9,3.44231148]
[1724950452821,6.3001121,2567.0,2566.9,0.61443287]
[1724950453227,7.2736621,2567.0,2566.9,0.00584294]
[1724950453514,1.36313,2566.7,2566.6,1.01852463]
[1724950453714,5.19470185,2566.7,2566.6,4.45555096]
[1724950453916,9.66435387,2566.7,2566.6,4.45555096]
[1724950454111,9.66435387,2566.7,2566.6,2.50771103]
[1724950454309,9.66435387,2566.7,2566.6,0.6087022]
[1724950454310,16.63802387,2566.7,2566.6,0.6087022]
[1724950454512,0.97374,2566.5,2566.4,0.00584294]
[1724950454824,6.08290317,2566.5,2566.4,0.61462434]
[1724950455016,6.47239317,2566.5,2566.4,0.00584294]
[1724950455217,6.47239317,2566.5,2566.4,0.61460712]
[1724950455517,17.93613317,2566.5,2566.4,0.00584294]
[1724950455930,16.96239317,2566.5,2566.4,0.00584294]
[1724950457120,0.38957,2566.0,2565.9,0.39475278]
[1724950457332,3.59737,2566.0,2565.9,0.60886475]
[1724950457627,12.00202661,2566.0,2565.9,0.60886475]
[1724950458218,0.3896,2565.8,2565.7,0.00584294]
[1724950458724,4.53398206,2565.8,2565.7,0.00584294]
[1724950459916,4.14438206,2565.8,2565.7,0.39546294]
[1724950460123,4.14438206,2565.8,2565.7,1.00434281]
[1724950460324,3.59738,2566.0,2565.8,0.38959]
[1724950460528,3.2078,2566.0,2565.7,0.00584294]
[1724950460826,3.2078,2566.0,2565.9,0.38959]
[1724950461230,7.52656324,2566.0,2565.9,0.38959]
[1724950464237,3.2078,2566.0,2565.9,6.23433]
[1724950464632,1.1322,2566.5,2566.4,0.38951]
[1724950464835,4.34,2566.5,2566.4,0.38951]
[1724950465131,8.43751842,2566.5,2566.4,0.38951]
[1724950465439,8.04801842,2566.5,2566.4,0.38951]
[1724950465636,4.09751842,2566.5,2566.4,1.36329]
[1724950465931,3.2078,2566.8,2566.7,0.38946]
[1724950466141,0.76714294,2566.9,2566.8,1.36308]
[1724950466142,0.00584294,2566.9,2566.8,1.36308]
[1724950466330,0.00584294,2566.9,2566.8,6.03178]
[1724950466525,3.8178,2567.6,2566.8,47.05089371]
[1724950466724,0.38936,2567.4,2566.8,42.54631]
[1724950466931,4.13131657,2567.4,2567.2,0.38938]
[1724950467128,4.88431657,2567.5,2567.3,0.38937]
[1724950467329,0.38938,2567.3,2566.8,42.54631]
[1724950467529,0.38939,2567.2,2567.1,0.38939]
[1724950467725,0.38939,2567.2,2566.9,0.00584294]
[1724950467726,0.38942,2567.0,2566.9,0.00584294]
[1724950468031,11.32276155,2567.0,2566.9,0.00584294]
[1724950468239,15.21876155,2567.0,2566.9,0.00584294]
[1724950468428,16.19231155,2567.0,2566.9,0.00584294]
[1724950469337,16.94721155,2567.0,2566.9,0.00584294]
[1724950469939,15.97366155,2567.0,2566.9,0.00584294]
[1724950470443,8.86986155,2567.0,2566.9,0.00584294]
[1724950471638,12.07766155,2567.0,2566.9,0.00584294]
[1724950474844,13.05121155,2567.0,2566.9,0.00584294]
[1724950475236,12.07766155,2567.0,2566.9,0.00584294]
[1724950477531,16.94721155,2567.0,2566.9,0.00584294]
[1724950478938,16.94721155,2567.0,2566.3,1.51992404]
[1724950478939,0.3895,2566.5,2566.3,0.38952]
[1724950479138,4.73323,2566.5,2566.4,0.60869493]
[1724950479345,4.73323,2566.5,2566.1,1.13704]
[1724950479346,4.17711742,2566.4,2566.1,1.13704]
[1724950479538,0.38954,2566.2,2566.1,0.38955]
[1724950479846,0.38954,2566.2,2566.1,0.60875132]
[1724950480047,0.38954,2566.2,2566.1,3.8968]
[1724950480341,0.38957,2566.1,2565.9,4.50242294]
[1724950480641,4.17711742,2566.2,2566.1,0.38956]
[1724950480834,4.17711742,2566.2,2566.1,0.9983417]
[1724950481342,4.17711742,2566.2,2566.1,0.99832597]
[1724950482639,4.79636696,2566.3,2566.2,0.38954]
[1724950482842,4.79636696,2566.3,2566.2,0.99830597]
[1724950483142,3.59732,2566.4,2566.3,0.38952]
[1724950483345,3.59732,2566.4,2566.2,0.38953]
[1724950483543,7.73411503,2566.4,2566.3,0.38952]
[1724950484143,4.13679503,2566.4,2566.3,4.89505309]
[1724950484337,3.59727,2566.7,2566.5,0.38949]
[1724950484645,4.2318862,2566.6,2566.1,1.51992404]
[1724950484842,0.3895,2566.5,2566.3,0.38952]
[1724950485041,3.7595,2566.5,2566.3,0.38952]
[1724950485348,4.6213962,2566.4,2566.1,1.51992404]
[1724950485541,4.6213962,2566.4,2566.2,0.60871985]
[1724950485742,4.6213962,2566.4,2566.3,0.60871985]
[1724950486137,9.4919762,2566.4,2566.3,0.60871985]
[1724950486337,0.38956,2566.1,2566.0,0.38957]
[1724950486546,0.38955,2566.2,2566.1,0.38956]
[1724950486844,1.14743,2566.3,2566.2,0.38954]
[1724950487238,4.37010068,2566.2,2566.1,0.38955]
[1724950487441,5.12800068,2566.3,2566.2,0.38954]
[1724950487737,0.7579,2566.3,2566.2,0.9983062]
[1724950487937,0.38954,2566.2,2566.1,0.38954]
[1724950488133,0.38954,2566.2,2566.1,0.99830752]
[1724950488551,4.0989505,2566.2,2566.1,0.99830752]
[1724950488849,4.4884905,2566.2,2566.1,0.99830752]
[1724950489444,7.8584905,2566.2,2566.1,0.60876752]
[1724950490148,7.8584905,2566.2,2566.1,0.99832752]
[1724950490342,0.7579,2566.3,2566.2,0.38954]
[1724950490549,0.7579,2566.3,2566.2,0.99830752]
[1724950490946,0.7579,2566.3,2566.2,0.60876752]
[1724950490947,2.12124,2566.3,2566.2,0.60876752]
[1724950491246,0.38957,2566.0,2565.9,0.00584294]
[1724950491438,0.38957,2566.0,2565.9,1.95400911]
[1724950491747,0.38956,2566.1,2566.0,0.38957]
[1724950492345,0.38956,2566.1,2566.0,1.87895057]
[1724950492651,9.43054894,2566.3,2566.0,1.87895057]
[1724950492845,0.38954,2566.2,2566.1,0.60880179]
[1724950493251,4.83031782,2566.2,2566.1,0.60880179]
[1724950494053,4.83031782,2566.2,2566.1,0.99836179]
[1724950494352,4.83031782,2566.2,2566.1,0.60880179]
[1724950495548,4.44077782,2566.2,2566.1,0.99836179]
[1724950495854,3.85633614,2566.2,2566.1,1.87893371]
[1724950497347,4.24587614,2566.2,2566.1,1.87893371]
[1724950497856,5.21973614,2566.2,2566.1,1.48937371]
[1724950498054,0.38957,2566.0,2565.9,0.6146448]
[1724950498258,3.75957,2566.0,2565.9,2.10410924]
[1724950498454,7.89934732,2566.0,2565.9,1.22348875]
[1724950498657,4.13977732,2566.0,2565.9,1.22348875]
[1724950498857,4.13977732,2566.0,2565.9,2.49374595]
[1724950499053,3.2078,2566.4,2566.3,0.38952]
[1724950499260,3.2078,2566.4,2566.3,0.99836395]
[1724950499454,7.58773176,2566.4,2566.3,0.99836395]
[1724950499957,3.2078,2566.4,2566.3,4.89516395]
[1724950500151,3.2078,2566.4,2566.3,5.77567851]
[1724950500553,7.34752364,2566.4,2566.3,1.87887851]
[1724950500956,7.34752364,2566.4,2566.3,1.8787794]
[1724950501358,0.7724,2566.8,2566.7,0.38946]
[1724950501558,3.37,2567.2,2566.7,0.38946]
[1724950501559,3.8178,2567.3,2566.7,10.5047175]
[1724950501753,3.8178,2567.3,2567.2,0.38939]
[1724950501754,0.61,2567.3,2567.2,0.38939]
[1724950501951,0.61,2567.3,2567.2,42.67841127]
[1724950502353,0.99937,2567.3,2567.2,0.6087175]
[1724950502558,4.75415357,2567.3,2566.9,0.38943]
[1724950502758,0.3894,2567.1,2567.0,0.60859391]
[1724950503159,5.27145357,2567.1,2567.0,0.60859391]
[1724950503463,8.47925357,2567.1,2567.0,0.60859391]
[1724950503661,8.47925357,2567.1,2566.7,1.90937404]
[1724950503662,0.38943,2567.0,2566.7,1.90937404]
[1724950503859,0.38943,2567.0,2566.8,0.38945]
[1724950504059,4.33511,2567.1,2567.0,0.60860624]
[1724950504554,8.41734981,2567.1,2567.0,0.60860624]